[Event "WCCC G12 2019"]
[Site "Weifang"]
[Date "2019.08.25"]
[Round "5"]
[White "Peng, Sophia"]
[Black "Manko, Mariya"]
[Result "0-1"]
[ECO "C55"]
[WhiteElo "1471"]
[BlackElo "1895"]
[Annotator "NA"]
[PlyCount "72"]
[EventDate "2019.08.21"]
[EventType "swiss"]
[EventCountry "CHN"]
[SourceTitle "playchess.com"]
[Source "ChessBase"]
[SourceQuality "1"]
[TimeControl "40/5400+30:1800+30"]

1. e4 e5 2. Nf3 Nc6 3. Bb5 a6 4. Ba4 Nf6 5. O-O Be7 6. d3 b5 7. Bb3 d6 8. c3 O-O 9. h3 Na5 10. Bc2 $11 c5 11. d4 Nc6 12. Re1 Bb7 13. d5 Na5 14. Nbd2 g6 15. Nf1 Nh5 16. Bh6 Ng7 17. Ng3 Bc8 18. a4 b4 19. cxb4 cxb4 20. Nh2 f5 21. exf5 gxf5 22. Nh5 Bf6 23. g4 Qe8 24. g5 Nxh5 25. Bxf8 Bxg5 26. Bxd6 Qg6 27. Kf1 Nc4 28. Bxb4 a5 29. Bc3 Ba6 30. Bd3 Nf4 31. Be2 Bh4 32. Ng4 fxg4 33. hxg4 Qe4 34. f3 Qe3 35. Bd4 exd4 36. Bxc4 Qf2# 0-1

[Event "WCCC G12 2019"]
[Site "Weifang"]
[Date "2019.08.25"]
[Round "5"]
[White "Wang, Tianna"]
[Black "Tang, Zoey"]
[Result "*"]
[ECO "A48"]
[WhiteElo "1409"]
[BlackElo "1866"]
[Annotator "NA"]
[PlyCount "37"]
[EventDate "2019.08.21"]
[EventType "swiss"]
[EventCountry "CHN"]
[SourceTitle "playchess.com"]
[Source "ChessBase"]
[SourceQuality "1"]
[TimeControl "40/5400+30:1800+30"]

1. d4 Nf6 2. Bf4 g6 3. Nf3 Bg7 4. e3 O-O 5. Be2 d6 6. h3 c5 7. O-O b6 8. c3 Bb7 9. Nbd2 Nbd7 10. Re1 a6 11. Rc1 $11 Rc8 12. Qb3 cxd4 13. exd4 Nh5 14. Bh2 Bh6 15. c4 Nf4 16. Bf1 Ne6 17. Ne4 Bg7 18. Qd1 Nf6 19. d5 *

[Event "WCCC G12 2019"]
[Site "Weifang"]
[Date "2019.08.26"]
[Round "6.3"]
[White "Li, Yingxuan"]
[Black "Shvedova, Alexandra"]
[Result "0-1"]
[ECO "D36"]
[WhiteElo "1599"]
[BlackElo "1932"]
[Annotator "NA"]
[PlyCount "54"]
[EventDate "2019.08.21"]
[EventType "swiss"]
[EventCountry "CHN"]
[SourceTitle "playchess.com"]
[Source "ChessBase"]
[SourceQuality "1"]
[TimeControl "40/5400+30:1800+30"]

1. d4 d5 2. c4 e6 3. Nc3 Nf6 4. cxd5 exd5 5. Bg5 c6 6. e3 Be7 7. Qc2 Bg4 8. h3 Bh5 9. f4 h6 10. Bxf6 Bxf6 11. Bd3 O-O 12. g4 Bg6 13. Bxg6 fxg6 14. Qxg6 Qe7 15. Kd2 Re8 16. Qd3 Na6 17. a3 Rad8 18. Nf3 c5 19. Ne5 Nc7 20. Ne2 Ne6 21. Raf1 Bxe5 22. fxe5 Ng5 23. Ng3 Rf8 24. Rf5 c4 25. Qc2 b5 26. Qc3 g6 27. Rf4 Ne6 0-1

[Event "WCCC G12 2019"]
[Site "Weifang"]
[Date "2019.08.26"]
[Round "6.4"]
[White "Nguyen, Le Cam Hien"]
[Black "Bayasgalan, Khishigbaatar"]
[Result "1-0"]
[ECO "B42"]
[WhiteElo "1579"]
[BlackElo "1643"]
[Annotator "NA"]
[PlyCount "81"]
[EventDate "2019.08.21"]
[EventType "swiss"]
[EventCountry "CHN"]
[SourceTitle "playchess.com"]
[Source "ChessBase"]
[SourceQuality "1"]
[TimeControl "40/5400+30:1800+30"]

1. e4 c5 2. Nf3 e6 3. d4 cxd4 4. Nxd4 a6 5. c4 Nf6 6. Bd3 Qc7 7. O-O b6 8. Nc3 Bb7 9. Be3 Be7 10. Rc1 O-O 11. f4 d6 12. f5 e5 13. Nd5 Qd8 14. Nc2 Nxd5 15. cxd5 Nd7 16. Rf3 a5 17. Rh3 Bg5 18. Qh5 h6 19. Rf1 f6 20. Rg3 Qe8 21. Qxe8 Rfxe8 22. Bb5 Red8 23. Bxd7 Bxe3+ 24. Nxe3 Rxd7 25. Nc4 Ra6 26. a4 Bc8 27. Rc3 Bb7 28. Rfc1 Kf8 29. Na3 Ra8 30. Nb5 Ke7 31. Rc7 Rad8 32. R7c3 Ra8 33. Rb3 Rb8 34. Rbc3 Ra8 35. Kf2 Ba6 36. Nc7 Ra7 37. Nxa6 Rxa6 38. Rc6 {Ra7 Rb6} Rb7 {Rcc6} 39. Rc7+ Rxc7 40. Rxc7+ {Ke3} Kf8 41. Kf3 {Rc4 Rd7} 1-0

[Event "WCCC G12 2019"]
[Site "Weifang"]
[Date "2019.08.26"]
[Round "6.5"]
[White "Nguyen, Ha Khanh Linh"]
[Black "Wei, Yaqing"]
[Result "*"]
[ECO "E40"]
[WhiteElo "1500"]
[BlackElo "1640"]
[Annotator "NA RC"]
[PlyCount "85"]
[EventDate "2019.08.21"]
[EventType "swiss"]
[EventCountry "CHN"]
[SourceTitle "playchess.com"]
[Source "ChessBase"]
[SourceQuality "1"]
[TimeControl "40/5400+30:1800+30"]

1. d4 Nf6 2. c4 e6 3. Nc3 Bb4 4. e3 Bxc3+ 5. bxc3 b6 6. Qf3 d5 7. cxd5 Qxd5 8. Bd3 Bb7 9. Qxd5 Bxd5 10. Ne2 O-O 11. f3 Rc8 12. e4 Bb7 13. Bg5 Nbd7 14. Kd2 h6 15. Bxf6 Nxf6 16. Rhb1 Nd7 17. Ng3 Kf8 18. Nf1 c5 19. a4 a5 20. Ne3 Ba6 21. Bxa6 Rxa6 22. Kd3 cxd4 23. cxd4 Ra7 24. Rc1 Rac7 25. Rxc7 Rxc7 26. Nc4 Rb7 27. Rb1 Rb8 28. Rb5 f6 29. f4 g5 30. g3 Ke7 31. Ne3 gxf4 32. gxf4 Rg8 33. Rh5 Rg1 34. Nc2 e5 35. fxe5 fxe5 36. Rxh6 exd4 37. Kxd4 Rg2 38. Ne3 Ra2 39. Nd5+ Ke8 40. Nc3 Rb2 41. h4 Nc5 42. h5 Rb4+ 43. Kd5 *

[Event "WCCC G12 2019"]
[Site "Weifang"]
[Date "2019.08.26"]
[Round "6.6"]
[White "Enkhbolor Nyamdavaa"]
[Black "Wang, Yuehan"]
[Result "0-1"]
[ECO "B48"]
[WhiteElo "1627"]
[BlackElo "1600"]
[Annotator "NA"]
[PlyCount "94"]
[EventDate "2019.08.21"]
[EventType "swiss"]
[EventCountry "CHN"]
[SourceTitle "playchess.com"]
[Source "ChessBase"]
[SourceQuality "1"]
[TimeControl "40/5400+30:1800+30"]

1. e4 c5 2. Nf3 Nc6 3. d4 cxd4 4. Nxd4 Qc7 5. Nc3 e6 6. Be3 a6 7. Qd2 Nf6 8. f3 Be7 9. O-O-O h5 10. Be2 b5 11. a3 Ne5 12. Bf4 d6 13. Ndxb5 axb5 14. Nxb5 Qc6 15. Nxd6+ Bxd6 16. Qxd6 Qxd6 17. Rxd6 Ned7 18. Rhd1 O-O 19. c4 Nc5 20. e5 Ne8 21. Rd8 Nb7 22. R8d3 Nc5 23. Rd8 Nb7 24. R8d3 Nc5 25. Rc3 Ba6 26. b4 Na4 27. Rb3 Nc7 28. b5 Nc5 29. Rb4 Bb7 30. Be3 Na4 31. Rd7 Rfc8 32. Rb3 Rab8 33. Ba7 Ra8 34. Bd4 Kf8 35. b6 Na6 36. Rb1 N6c5 37. Rd6 Ke7 38. Bd1 f6 39. Be2 Nd7 40. f4 Ndc5 41. Bxc5 Nxc5 42. Kb2 Na4+ 43. Kb3 Nc5+ 44. Kb2 Ne4 45. Rd4 Rc6 46. Kc2 f5 47. Bf3 Rxa3 0-1

[Event "WCCC G12 2019"]
[Site "Weifang"]
[Date "2019.08.26"]
[Round "6.7"]
[White "Savitha Shri B"]
[Black "Wang, Xiyue"]
[Result "1-0"]
[ECO "B42"]
[WhiteElo "2010"]
[BlackElo "1540"]
[Annotator "NA"]
[PlyCount "108"]
[EventDate "2019.08.21"]
[EventType "swiss"]
[EventCountry "CHN"]
[SourceTitle "playchess.com"]
[Source "ChessBase"]
[SourceQuality "1"]
[TimeControl "40/5400+30:1800+30"]

1. e4 c5 2. Nf3 e6 3. d4 cxd4 4. Nxd4 a6 5. Bd3 Nc6 6. Nxc6 dxc6 7. Nd2 Qc7 8. O-O e5 9. a4 Nf6 10. Nc4 Be6 11. Qe2 Be7 12. Bd2 Bxc4 13. Bxc4 O-O 14. a5 c5 15. Ra3 Rad8 16. Re3 Kh8 17. Rh3 Rd4 18. f3 Rd7 $16 (18... Qd7) ({Black should play} 18... Rfd8 $14 19. Bc3 Kg8 20. Bxd4 cxd4) 19. b3 Rfd8 20. Bd3 c4 21. bxc4 Bc5+ 22. Kh1 Re8 23. Qe1 Bf8 24. Bg5 Re6 25. f4 h6 26. f5 Rc6 27. Bd2 Nh7 28. g4 Be7 29. Rhf3 Qd8 30. Qa1 Qc7 31. Be1 Ng5 32. Re3 f6 33. Bd2 Bc5 34. Rg3 Nxe4 35. Bxe4 Rxd2 36. g5 fxg5 37. Qa4 Rf6 38. Rb3 Qf7 39. Rd3 Rxd3 40. cxd3 g6 41. Rb1 Rxf5 42. Bxf5 Qxf5 43. Qd1 e4 44. Qf1 Qxf1+ 45. Rxf1 exd3 46. Rd1 Bb4 47. Rxd3 Bxa5 48. Rd6 b6 49. Rd7 Bb4 50. Ra7 b5 51. Rxa6 bxc4 52. Rxg6 Kh7 53. Rc6 c3 54. Kg2 c2 1-0

[Event "WCCC G12 2019"]
[Site "Weifang"]
[Date "2019.08.26"]
[Round "6.8"]
[White "Velea, Sophie"]
[Black "Manko, Mariya"]
[Result "1/2-1/2"]
[ECO "B70"]
[WhiteElo "1533"]
[BlackElo "1895"]
[Annotator "NA"]
[PlyCount "91"]
[EventDate "2019.08.21"]
[EventType "swiss"]
[EventCountry "CHN"]
[SourceTitle "playchess.com"]
[Source "ChessBase"]
[SourceQuality "1"]
[TimeControl "40/5400+30:1800+30"]

1. e4 c5 2. Nf3 g6 3. d4 cxd4 4. Nxd4 Bg7 5. Nc3 Nc6 6. Nde2 Nf6 7. g3 O-O 8. Bg2 d6 9. O-O Qa5 10. h3 Qh5 11. Nf4 Qxd1 12. Rxd1 Rb8 13. Nfe2 Be6 14. Be3 Nd7 $11 15. Nd4 Nxd4 16. Bxd4 Bxd4 17. Rxd4 Rfc8 18. Rc1 b5 19. Nd5 Bxd5 20. Rxd5 a6 21. f4 Nb6 22. Rd3 Na4 23. Rb3 Rc4 24. a3 Rbc8 25. c3 Rb8 26. Re1 Nc5 27. Rb4 Nd3 28. Rxc4 bxc4 29. Rb1 Nxb2 30. Bf1 Rb6 31. Kf2 Kf8 32. Ke3 Ke8 33. Kd2 a5 34. Be2 f6 35. Bd1 Kd8 36. Bc2 Na4 37. Rxb6 Nxb6 38. Bd1 Kc7 39. h4 Kc6 40. Ke3 Kc5 41. g4 h6 42. g5 fxg5 43. hxg5 hxg5 44. fxg5 Nd7 45. Ba4 Ne5 46. Be8 1/2-1/2

[Event "WCCC G12 2019"]
[Site "Weifang"]
[Date "2019.08.26"]
[Round "6.9"]
[White "Racasa, Antonella Berthe"]
[Black "Jiang, Kate Yuhua"]
[Result "1/2-1/2"]
[ECO "D02"]
[WhiteElo "1380"]
[BlackElo "1671"]
[Annotator "NA"]
[PlyCount "86"]
[EventDate "2019.08.21"]
[EventType "swiss"]
[EventCountry "CHN"]
[SourceTitle "playchess.com"]
[Source "ChessBase"]
[SourceQuality "1"]
[TimeControl "40/5400+30:1800+30"]

1. d4 d5 2. Bf4 Nf6 3. e3 e6 4. c3 c5 5. Nd2 Nc6 6. Ngf3 Bd6 7. Bg3 O-O 8. Bd3 Re8 9. O-O e5 10. dxe5 Nxe5 11. Nxe5 Bxe5 12. Bxe5 Rxe5 13. Nf3 Re8 14. c4 Bg4 15. cxd5 Qxd5 16. Be2 Rad8 17. Qxd5 Nxd5 18. Rac1 b6 19. Rfd1 Nf6 20. Kf1 Kf8 21. h3 Be6 22. Rxd8 Rxd8 23. Bc4 Bxc4+ 24. Rxc4 Rc8 25. a4 Nd5 26. Ke2 a6 27. Ne5 Rc7 28. Nd3 a5 29. b3 Ke7 30. Rc1 Ke6 31. Nb2 f5 32. Nc4 Re7 33. Kf3 Kd7 34. Rd1 Kc6 35. Rd2 Re6 36. Rd3 g5 37. g3 h5 38. Rd2 Re7 39. Rd1 Re6 40. Rd2 Re8 41. Rd1 Re7 42. Rd2 Re6 43. Rd1 Re7 1/2-1/2

[Event "WCCC G12 2019"]
[Site "Weifang"]
[Date "2019.08.26"]
[Round "6.10"]
[White "Sun, Chen"]
[Black "Zakirova, Aisha"]
[Result "0-1"]
[ECO "B26"]
[WhiteElo "1529"]
[BlackElo "1595"]
[Annotator "NA"]
[PlyCount "67"]
[EventDate "2019.08.21"]
[EventType "swiss"]
[EventCountry "CHN"]
[SourceTitle "playchess.com"]
[Source "ChessBase"]
[SourceQuality "1"]
[TimeControl "40/5400+30:1800+30"]

1. e4 c5 2. Nc3 Nc6 3. g3 g6 4. Bg2 Bg7 5. d3 d6 6. Be3 Nf6 7. h3 O-O 8. Nge2 Rb8 9. O-O b5 10. Qd2 b4 11. Nd1 Bd7 12. Bh6 Nd4 13. Bxg7 Kxg7 14. f4 e6 15. Ne3 Ng8 16. c3 Nxe2+ 17. Qxe2 bxc3 18. bxc3 Qa5 19. Qd2 Ne7 20. e5 d5 21. Ng4 Ng8 22. Nf2 f6 23. Rfe1 f5 24. Qc1 Rb6 25. c4 d4 26. g4 Ne7 27. Re2 Rfb8 28. Nd1 Qa4 29. g5 Nc6 30. Bf3 Nb4 31. Rd2 Bc6 32. a3 Na6 33. Bg2 Bxg2 34. Kxg2 0-1

[Event "WCCC G12 2019"]
[Site "Weifang"]
[Date "2019.08.29"]
[Round "7"]
[White "Mikheeva, Galina"]
[Black "Nguyen, Le Cam Hien"]
[Result "1-0"]
[ECO "B25"]
[WhiteElo "1952"]
[BlackElo "1579"]
[Annotator "NA"]
[PlyCount "85"]
[EventDate "2019.08.21"]
[EventType "swiss"]
[EventCountry "CHN"]
[SourceTitle "playchess.com"]
[Source "ChessBase"]
[SourceQuality "1"]
[TimeControl "40/5400+30:1800+30"]

1. e4 {[%emt 0:00:00]} c5 {[%emt 0:00:00]} 2. f4 {[%emt 0:00:00]} Nc6 {[%emt 0:00:00]} 3. Nf3 {[%emt 0:00:18]} g6 {[%emt 0:00:39]} 4. g3 {[%emt 0:00:30]} Bg7 {[%emt 0:00:19]} 5. Bg2 {[%emt 0:00:08]} d6 {[%emt 0:00:36]} 6. d3 {[%emt 0:05:10]} e6 {[%emt 0:00:39]} 7. Nc3 {[%emt 0:03:20]} Nge7 {[%emt 0:00:50]} 8. O-O {[%emt 0:01:23]} O-O {[%emt 0:00:34]} 9. Be3 {[%emt 0:01:06]} Nd4 {[%emt 0:02:50]} 10. Rb1 {[%emt 0:16:30]} Nec6 {[%emt 0:11:33]} 11. Ne2 {[%emt 0:02:52]} b6 {[%emt 0:09:37]} 12. c3 {[%emt 0:01:05]} Nxf3+ {[%emt 0:00:08]} 13. Bxf3 {[%emt 0:00:17]} d5 {[%emt 0:05:00]} 14. d4 {[%emt 0:06:08]} c4 {[%emt 0:01:09]} 15. b3 {[%emt 0:02:46]} cxb3 {[%emt 0:07:21]} 16. axb3 {[%emt 0:01:36]} Bb7 {[%emt 0:03:05]} 17. g4 {[%emt 0:24:24]} Ne7 {[%emt 0:10:10]} 18. e5 {[%emt 0:05:09]} Rc8 {[%emt 0:02:10]} 19. Qd3 {[%emt 0:00:40]} Qd7 {[%emt 0:01:34]} 20. Ng3 {[%emt 0:04:32]} f5 {[%emt 0:01:07]} 21. exf6 {[%emt 0:01:25]} Rxf6 {[%emt 0:00:40]} 22. Rbe1 {[%emt 0:07:24]} Rcf8 {[%emt 0:05:47]} 23. Bd2 {[%emt 0:03:07]} R6f7 {[%emt 0:02:05]} 24. Rf2 {[%emt 0:02:51]} Bc8 {[%emt 0:00:37]} 25. h4 {[%emt 0:01:24]} Qd6 {[%emt 0:01:02]} 26. Kg2 {[%emt 0:01:44]} Bh6 {[%emt 0:13:58]} 27. g5 {[%emt 0:00:43]} Bg7 {[%emt 0:00:05]} 28. h5 {[%emt 0:02:46]} Nf5 {[%emt 0:00:33]} 29. Nxf5 {[%emt 0:00:29]} exf5 {[%emt 0:01:31]} 30. h6 {[%emt 0:00:03]} Bh8 {[%emt 0:00:09]} 31. Qb5 {[%emt 0:00:53]} Bb7 {[%emt 0:01:24]} 32. Rfe2 {[%emt 0:00:43]} Qd7 {[%emt 0:04:51]} 33. Qxd7 {[%emt 0:00:51]} Rxd7 {[%emt 0:00:06]} 34. Re7 {[%emt 0:00:12]} Rxe7 {[%emt 0:00:44]} 35. Rxe7 {[%emt 0:00:03]} Rf7 {[%emt 0:00:20]} 36. Rxb7 {[%emt 0:00:56]} Rxb7 {[%emt 0:00:26]} 37. Bxd5+ {[%emt 0:00:04]} Kf8 {[%emt 0:00:09]} 38. Bxb7 {[%emt 0:00:07]} b5 {[%emt 0:00:25]} 39. Kf3 {[%emt 0:00:28]} b4 {[%emt 0:00:23]} 40. Ke3 {[%emt 0:00:00]} bxc3 {[%emt 0:00:00]} 41. Bxc3 {[%emt 0:00:16]} Ke7 {[%emt 0:00:25]} 42. Bd5 {[%emt 0:00:20]} a6 {[%emt 0:00:45]} 43. Bb4+ {[%emt 0:00:05]} 1-0

[Event "WCCC G12 2019"]
[Site "Weifang"]
[Date "2019.08.29"]
[Round "7"]
[White "Shvedova, Alexandra"]
[Black "Yan, Ruiyang"]
[Result "0-1"]
[ECO "B55"]
[WhiteElo "1932"]
[BlackElo "1983"]
[Annotator "NA"]
[PlyCount "98"]
[EventDate "2019.08.21"]
[EventType "swiss"]
[EventCountry "CHN"]
[SourceTitle "playchess.com"]
[Source "ChessBase"]
[SourceQuality "1"]
[TimeControl "40/5400+30:1800+30"]

1. e4 {[%emt 0:00:00]} c5 {[%emt 0:00:00]} 2. Nf3 {[%emt 0:00:00]} d6 {[%emt 0:00:00]} 3. d4 {[%emt 0:00:00]} cxd4 {[%emt 0:00:01]} 4. Nxd4 {[%emt 0:00:00]} Nf6 {[%emt 0:00:08]} 5. f3 {[%emt 0:00:00]} e5 {[%emt 0:00:41]} 6. Nb3 {[%emt 0:00:01]} d5 {[%emt 0:00:05]} 7. Bb5+ {[%emt 0:03:58]} Nc6 {[%emt 0:00:24]} 8. exd5 {[%emt 0:01:24]} Nxd5 {[%emt 0:03:17]} 9. Qe2 {[%emt 0:18:07]} Be7 {[%emt 0:24:32]} 10. O-O {[%emt 0:11:18]} O-O {[%emt 0:00:18]} 11. c4 {[%emt 0:03:07]} Nf4 {[%emt 0:02:47]} 12. Bxf4 {[%emt 0:01:21]} exf4 {[%emt 0:00:07]} 13. Nc3 {[%emt 0:00:14]} a6 {[%emt 0:04:42]} 14. Ba4 {[%emt 0:05:58]} Nd4 {[%emt 0:05:59]} 15. Qe4 {[%emt 0:07:38]} Nxb3 {[%emt 0:02:51]} 16. Bxb3 {[%emt 0:00:08]} Bc5+ {[%emt 0:03:13]} 17. Kh1 {[%emt 0:00:06]} Be3 {[%emt 0:00:18]} 18. Rad1 {[%emt 0:04:08]} Qg5 {[%emt 0:06:06]} 19. Nd5 {[%emt 0:04:55]} Be6 {[%emt 0:01:22]} 20. Nxe3 {[%emt 0:03:04]} fxe3 {[%emt 0:00:07]} 21. f4 {[%emt 0:00:04]} Qf5 {[%emt 0:11:07]} 22. Qxe3 {[%emt 0:00:23]} Rac8 {[%emt 0:00:08]} 23. Rc1 {[%emt 0:09:53]} Rfe8 {[%emt 0:03:34]} 24. Qb6 {[%emt 0:04:56]} Bd7 {[%emt 0:11:30]} 25. Bc2 {[%emt 0:05:05]} Qg4 {[%emt 0:01:45]} 26. Bd1 {[%emt 0:00:51]} Qh4 {[%emt 0:04:57]} 27. Bf3 {[%emt 0:02:00]} Re6 {[%emt 0:02:52]} 28. Qg1 {[%emt 0:00:22]} Bc6 {[%emt 0:02:29]} 29. Bd5 {[%emt 0:05:05]} Rd6 {[%emt 0:01:03]} 30. Bf3 {[%emt 0:04:37]} Bxf3 {[%emt 0:03:49]} 31. Rxf3 {[%emt 0:00:00]} Rd2 {[%emt 0:00:13]} 32. Rb3 {[%emt 0:03:03]} Qxf4 {[%emt 0:00:24]} 33. Rxb7 {[%emt 0:00:08]} Rxg2 {[%emt 0:00:27]} 34. Kxg2 {[%emt 0:02:55]} Qe4+ {[%emt 0:00:04]} 35. Kg3 {[%emt 0:00:19]} Qxb7 {[%emt 0:00:05]} 36. Qd4 {[%emt 0:00:20]} Qe7 {[%emt 0:00:50]} 37. Qf4 {[%emt 0:01:51]} Qe2 {[%emt 0:01:22]} 38. c5 {[%emt 0:00:50]} Re8 {[%emt 0:01:57]} 39. Rc3 {[%emt 0:00:56]} Qe1+ {[%emt 0:02:40]} 40. Qf2 {[%emt 0:00:00]} Qe5+ {[%emt 0:00:00]} 41. Kg2 {[%emt 0:07:30]} Qd5+ {[%emt 0:00:53]} 42. Kg1 {[%emt 0:04:16]} Qd1+ {[%emt 0:00:42]} 43. Kg2 {[%emt 0:05:21]} Re2 {[%emt 0:00:00]} 44. Re3 {[%emt 0:00:08]} Rxf2+ {[%emt 0:00:00]} 45. Kxf2 {[%emt 0:00:04]} Kf8 {[%emt 0:00:05]} 46. c6 {[%emt 0:00:12]} Qc2+ {[%emt 0:00:05]} 47. Kg3 {[%emt 0:00:58]} Qxc6 {[%emt 0:00:05]} 48. Rc3 {[%emt 0:00:04]} Qd6+ {[%emt 0:01:01]} 49. Kh3 {[%emt 0:00:09]} Qe6+ {[%emt 0:00:03]} 0-1

[Event "WCCC G12 2019"]
[Site "Weifang"]
[Date "2019.08.29"]
[Round "7"]
[White "Tang, Zoey"]
[Black "Li, Yingxuan"]
[Result "1-0"]
[ECO "A45"]
[WhiteElo "1866"]
[BlackElo "1599"]
[Annotator "NA"]
[PlyCount "120"]
[EventDate "2019.08.21"]
[EventType "swiss"]
[EventCountry "CHN"]
[SourceTitle "playchess.com"]
[Source "ChessBase"]
[SourceQuality "1"]
[TimeControl "40/5400+30:1800+30"]

1. d4 {[%emt 1:30:30]} Nf6 {[%emt 1:30:30]} 2. Bg5 {[%emt 0:00:30]} e6 {[%emt 0:00:30]} 3. e4 {[%emt 0:00:30]} h6 {[%emt 0:00:30]} 4. Bxf6 {[%emt 0:00:30]} Qxf6 {[%emt 0:00:30]} 5. c3 {[%emt 0:00:30]} Qg6 {[%emt 0:00:30]} 6. Qf3 {[%emt 0:00:30]} d6 {[%emt 0:00:30]} 7. Bd3 {[%emt 0:00:30]} e5 {[%emt 0:00:30]} 8. h3 {[%emt 0:00:30]} Nd7 {[%emt 0:00:30]} 9. Nd2 {[%emt 0:00:30]} Be7 {[%emt 0:00:30]} 10. Ne2 {[%emt 0:00:30]} Qf6 {[%emt 0:00:30]} 11. Qg3 {[%emt 0:00:30]} a5 {[%emt 0:00:30]} 12. O-O {[%emt 0:00:30]} Qg5 {[%emt 0:00:30]} 13. Nf3 {[%emt 0:00:30]} Qxg3 {[%emt 0:00:30]} 14. Nxg3 {[%emt 0:00:30]} g6 {[%emt 0:00:30]} 15. Rfd1 {[%emt 0:00:30]} O-O {[%emt 0:00:30]} 16. a3 {[%emt 0:00:30]} Bf6 {[%emt 0:00:30]} 17. Nf1 {[%emt 0:00:30]} Nb6 {[%emt 0:00:30]} 18. Ne3 {[%emt 0:00:30]} Bg7 {[%emt 0:00:30]} 19. Nc4 {[%emt 0:00:30]} Nxc4 {[%emt 0:00:30]} 20. Bxc4 {[%emt 0:00:30]} Kh7 {[%emt 0:00:30]} 21. Rd2 {[%emt 0:00:30]} f5 {[%emt 0:00:30]} 22. exf5 {[%emt 0:00:30]} gxf5 {[%emt 0:00:30]} 23. dxe5 {[%emt 0:00:30]} dxe5 {[%emt 0:00:30]} 24. Rad1 {[%emt 0:00:30]} Bf6 {[%emt 0:00:30]} 25. a4 {[%emt 0:00:30]} e4 {[%emt 0:00:30]} 26. Nd4 {[%emt 0:00:30]} Bg5 {[%emt 0:00:30]} 27. Re2 {[%emt 0:00:30]} Rd8 {[%emt 0:00:30]} 28. Ree1 {[%emt 0:00:30]} Kg6 {[%emt 0:00:30]} 29. Nb5 {[%emt 0:00:30]} c6 {[%emt 0:00:30]} 30. Nd6 {[%emt 0:00:30]} Bf4 {[%emt 0:00:30]} 31. Bf7+ {[%emt 0:00:30]} Kh7 {[%emt 0:00:30]} 32. Nxc8 {[%emt 0:00:30]} Raxc8 {[%emt 0:00:30]} 33. Be6 {[%emt 0:00:30]} Rxd1 {[%emt 0:00:30]} 34. Bxf5+ {[%emt 0:00:30]} Kg8 {[%emt 0:00:30]} 35. Rxd1 {[%emt 0:00:30]} Re8 {[%emt 0:00:30]} 36. g3 {[%emt 0:00:30]} Bg5 {[%emt 0:00:30]} 37. h4 {[%emt 0:00:30]} Re5 {[%emt 0:00:30]} 38. hxg5 {[%emt 0:00:30]} Rxf5 {[%emt 0:00:30]} 39. gxh6 {[%emt 0:00:30]} Rf6 {[%emt 0:00:30]} 40. Rd8+ {[%emt 0:00:30]} Kh7 {[%emt 0:00:30]} 41. Rd7+ {[%emt 0:30:30]} Kxh6 {[%emt 0:30:30]} 42. Rxb7 {[%emt 0:00:30]} Rd6 {[%emt 0:00:30]} 43. Re7 {[%emt 0:00:30]} Rd1+ {[%emt 0:00:30]} 44. Kg2 {[%emt 0:00:30]} Re1 {[%emt 0:00:30]} 45. Re6+ {[%emt 0:00:30]} Kg7 {[%emt 0:00:30]} 46. Rxc6 {[%emt 0:00:30]} Re2 {[%emt 0:00:30]} 47. Kf1 {[%emt 0:00:30]} Rxb2 {[%emt 0:00:30]} 48. Re6 {[%emt 0:00:30]} Rb1+ {[%emt 0:00:30]} 49. Kg2 {[%emt 0:00:30]} Re1 {[%emt 0:00:30]} 50. Re5 {[%emt 0:00:30]} Re2 {[%emt 0:00:30]} 51. Kf1 {[%emt 0:00:30]} Rc2 {[%emt 0:00:30]} 52. Rxe4 {[%emt 0:00:30]} Rxc3 {[%emt 0:00:30]} 53. Re5 {[%emt 0:00:30]} Rc1+ {[%emt 0:00:30]} 54. Kg2 {[%emt 0:00:30]} Ra1 {[%emt 0:00:30]} 55. Rxa5 {[%emt 0:00:30]} Kf6 {[%emt 0:00:30]} 56. f4 {[%emt 0:00:30]} Ra3 {[%emt 0:00:30]} 57. g4 {[%emt 0:00:30]} Kg6 {[%emt 0:00:30]} 58. Ra6+ {[%emt 0:00:30]} Kg7 {[%emt 0:00:30]} 59. g5 {[%emt 0:00:30]} Kf7 {[%emt 0:00:30]} 60. f5 {[%emt 0:00:30]} Ra2+ {[%emt 0:00:30]} 1-0

[Event "WCCC G12 2019"]
[Site "Weifang"]
[Date "2019.08.29"]
[Round "7"]
[White "Karmanova, Olga Dm."]
[Black "Racasa, Antonella Berthe"]
[Result "0-1"]
[ECO "E65"]
[WhiteElo "1838"]
[BlackElo "1380"]
[Annotator "NA"]
[PlyCount "98"]
[EventDate "2019.08.21"]
[EventType "swiss"]
[EventCountry "CHN"]
[SourceTitle "playchess.com"]
[Source "ChessBase"]
[SourceQuality "1"]
[TimeControl "40/5400+30:1800+30"]

1. c4 {[%emt 1:30:30]} g6 {[%emt 1:30:30]} 2. d4 {[%emt 0:00:30]} Bg7 {[%emt 0:00:30]} 3. Nf3 {[%emt 0:00:30]} c5 {[%emt 0:00:30]} 4. d5 {[%emt 0:00:30]} d6 {[%emt 0:00:30]} 5. Nc3 {[%emt 0:00:30]} Nf6 {[%emt 0:00:30]} 6. g3 {[%emt 0:00:30]} O-O {[%emt 0:00:30]} 7. Bg2 {[%emt 0:00:30]} Nbd7 {[%emt 0:00:30]} 8. O-O {[%emt 0:00:30]} a6 {[%emt 0:00:30]} 9. Re1 {[%emt 0:00:30]} Rb8 {[%emt 0:00:30]} 10. a4 {[%emt 0:00:30]} Qc7 {[%emt 0:00:30]} 11. Nd2 {[%emt 0:00:30]} b6 {[%emt 0:00:30]} 12. e4 {[%emt 0:00:30]} Bb7 {[%emt 0:00:30]} 13. f4 {[%emt 0:00:30]} e6 {[%emt 0:00:30]} 14. h3 {[%emt 0:00:30]} exd5 {[%emt 0:00:30]} 15. cxd5 {[%emt 0:00:30]} Rfe8 {[%emt 0:00:30]} 16. Kh2 {[%emt 0:00:30]} Ba8 {[%emt 0:00:30]} 17. Nc4 {[%emt 0:00:30]} b5 {[%emt 0:00:30]} 18. axb5 {[%emt 0:00:30]} axb5 {[%emt 0:00:30]} 19. Rxa8 {[%emt 0:00:30]} Rxa8 {[%emt 0:00:30]} 20. Nxb5 {[%emt 0:00:30]} Qb8 {[%emt 0:00:30]} 21. Nbxd6 {[%emt 0:00:30]} Rf8 {[%emt 0:00:30]} 22. e5 {[%emt 0:00:30]} Ne8 {[%emt 0:00:30]} 23. f5 {[%emt 0:00:30]} Nxd6 {[%emt 0:00:30]} 24. exd6 {[%emt 0:00:30]} Nb6 {[%emt 0:00:30]} 25. Ne5 {[%emt 0:00:30]} Qxd6 {[%emt 0:00:30]} 26. Bf4 {[%emt 0:00:30]} Bxe5 {[%emt 0:00:30]} 27. Bxe5 {[%emt 0:00:30]} Qd7 {[%emt 0:00:30]} 28. f6 {[%emt 0:00:30]} h5 {[%emt 0:00:30]} 29. Qc1 {[%emt 0:00:30]} Kh7 {[%emt 0:00:30]} 30. Qxc5 {[%emt 0:00:30]} Na4 {[%emt 0:00:30]} 31. Qd4 {[%emt 0:00:30]} Qb5 {[%emt 0:00:30]} 32. Bd6 {[%emt 0:00:30]} Rfe8 {[%emt 0:00:30]} 33. Be7 {[%emt 0:00:30]} Nb6 {[%emt 0:00:30]} 34. d6 {[%emt 0:00:30]} Rac8 {[%emt 0:00:30]} 35. Rd1 {[%emt 0:00:30]} Nd7 {[%emt 0:00:30]} 36. Qd5 {[%emt 0:00:30]} Qxd5 {[%emt 0:00:30]} 37. Bxd5 {[%emt 0:00:30]} Kg8 {[%emt 0:00:30]} 38. Rd2 {[%emt 0:00:30]} Rc1 {[%emt 0:00:30]} 39. Kg2 {[%emt 0:00:30]} Nb6 {[%emt 0:00:30]} 40. Bb3 {[%emt 0:00:30]} Rb1 {[%emt 0:00:30]} 41. Bd1 {[%emt 0:30:30]} Rb8 {[%emt 0:30:30]} 42. d7 {[%emt 0:00:30]} Nxd7 {[%emt 0:00:30]} 43. Rxd7 {[%emt 0:00:30]} R1xb2+ {[%emt 0:00:30]} 44. Kf3 {[%emt 0:00:30]} Rc8 {[%emt 0:00:30]} 45. Rd3 {[%emt 0:00:30]} Rcb8 {[%emt 0:00:30]} 46. Be2 {[%emt 0:00:30]} R2b3 {[%emt 0:00:30]} 47. Rxb3 {[%emt 0:00:30]} Rxb3+ {[%emt 0:00:30]} 48. Kf4 {[%emt 0:00:30]} Rc3 {[%emt 0:00:30]} 49. h4 {[%emt 0:00:30]} Rb3 {[%emt 0:00:30]} 0-1